fUST/lending_fUST_20250408
["ID","MTS","AMOUNT","RATE_DAILY","PERIOD"]
[357501289,1744091452162,-500.0,0.00035616,7]
[357501290,1744091452173,-500.0,0.00035616,7]
[357501291,1744091452185,-500.0,0.00035616,7]
[357501292,1744091452196,-151.3115747,0.00035673,2]
[357501293,1744091452344,-500.0,0.00035673,5]
[357501294,1744091452355,-150.0,0.00035673,5]
[357501295,1744091452364,-319766.01,0.000357,30]
[357501296,1744091452373,-1667.24,0.000357,7]
[357501297,1744091452383,-500.0,0.000357,13]
[357501298,1744091452393,-164.077113,0.000357,14]
[357501299,1744091452402,-164.077113,0.000357,14]
[357501300,1744091452412,-151.0,0.000357,2]
[357501301,1744091452422,-180.558787,0.000357,2]
[357501302,1744091452432,-151.0,0.000357,14]
[357501303,1744091452442,-1466.74622,0.000357,2]
[357501304,1744091452455,-1466.74622,0.000357,2]
[357501305,1744091452465,-151.0,0.000357,14]
[357501306,1744091452475,-151.0,0.000357,14]
[357501307,1744091452485,-151.0,0.000357,14]
[357501308,1744091452495,-151.0,0.000357,14]
[357501309,1744091452505,-151.0,0.000357,14]
[357501310,1744091452515,-151.0,0.000357,14]
[357501311,1744091452525,-151.0,0.000357,14]
[357501312,1744091452535,-151.0,0.000357,14]
[357501313,1744091452545,-453.79571,0.0003589,2]
[357501314,1744091452555,-151.0,0.00035973,5]
[357501315,1744091452566,-151.0,0.00035973,5]
[357501316,1744091452575,-151.0,0.00035973,5]
[357501317,1744091452585,-151.0,0.00035973,5]
[357501318,1744091452595,-200.0,0.00035973,5]
[357501319,1744091452604,-207.4,0.00035973,5]
[357501320,1744091452614,-391.13455526,0.00035973,5]
[357501321,1744091452624,-234.24959992,0.00035999,2]
[357501322,1744091452633,-161.39336328,0.00035999,2]
[357501323,1744091452643,-160.0,0.00035999,10]
[357501324,1744091452653,-5000.0,0.00036,35]
[357501325,1744091452663,-658287.44885066,0.00036,2]
[357501326,1744091452773,-5947.06201263,0.00036,2]
[357501327,1744091452785,-19957.42105375,0.00036,2]
[357501328,1744091452835,-500.0,0.0001988,2]
[357501329,1744091452845,-1430.80000004,0.00033486,11]
[357501330,1744091453100,-165.99634864,0.00019879,2]
[357501331,1744091453111,-500.0,0.0001988,2]
[357501332,1744091453121,-500.0,0.00024658,2]
[357501333,1744091453130,-475.50795986,0.00024658,2]
[357501334,1744091453139,-3392.49372491,0.00033486,11]
[357501335,1744091453151,-151.0,0.00034521,2]
[357501336,1744091453161,-151.0,0.000357,14]
[357501337,1744091453171,-22234.15642249,0.00036,2]
[357501338,1744091453186,-2020.91219939,0.00036,2]
[357501339,1744091453197,-536.92244762,0.00036,2]
[357501340,1744091453208,-13952.92731972,0.00036,2]
[357501341,1744091455879,-159.5185218,0.0001988,2]
[357501342,1744091461704,-287.1933,0.00019879,2]
[357501343,1744091465338,-180.96510933,0.00019879,2]
[357501344,1744091471810,-31.84159067,0.00019879,2]
[357501345,1744091471843,-123.22382807,0.0001988,2]
[357501346,1744091476143,-151.00000001,0.0001988,2]
[357501348,1744091485656,-155.06541874,0.00019681,2]
[357501349,1744091485689,-17.10029526,0.00019879,2]
[357501350,1744091490520,-202.90515104,0.00019782,2]
[357501351,1744091494664,-153.68,0.00019584,2]
[357501352,1744091679598,-160.0,0.00019388,2]
[357501353,1744091763140,-61.39086504,0.00019388,2]
[357501354,1744091763166,-145.53155115,0.00019779,2]
[357501355,1744091767268,-169.801801,0.00019581,2]
[357501360,1744091984410,-300.0,0.00018804,2]
[357501361,1744092204854,-434.683304,0.00018804,2]
[357501362,1744092242478,-24.33535,0.00018804,2]
[357501363,1744092242502,-275.66465,0.00019681,2]
[357501365,1744092303692,-155.0,0.00019,2]
[357501366,1744092345585,-4.0,0.00019,2]
[357501367,1744092345612,-196.0,0.00019581,2]
[357501368,1744092350524,1000.0,0.00022,10]
[357501369,1744092351389,1000.0,0.00022,10]
[357501370,1744092392239,-160.0,0.00018779,2]
[357501371,1744092407111,-95.0,0.00019581,2]
[357501372,1744092407134,-300.0,0.00019772,2]
[357501373,1744092407156,-55.0,0.00019773,2]
[357501374,1744092429089,-175.9051293,0.00018804,2]
[357501375,1744092429112,-445.0,0.00019773,2]
[357501376,1744092429135,-77.40949258,0.00019773,2]
[357501377,1744092491990,-203.76,0.00019681,2]
[357501378,1744092540573,-223.87239316,0.00019681,2]
[357501379,1744092552959,-151.0,0.00019484,2]
[357501380,1744092568116,-109.99300835,0.00019484,2]
[357501381,1744092568141,-2468.16159165,0.00019681,2]
[357501405,1744092632322,-422.59050742,0.00019773,2]
[357501407,1744092632332,-242.6443057,0.00019773,2]
[357501408,1744092632342,-500.0,0.00019773,2]
[357501409,1744092632351,-500.0,0.00019773,2]
[357501410,1744092632361,-500.0,0.00019773,2]
[357501412,1744092632371,-500.0,0.00019773,2]
[357501414,1744092632381,-500.0,0.00019773,2]
[357501416,1744092632391,-379.58382185,0.00019773,2]
[357501418,1744092632400,-1056.16,0.00019779,2]
[357501420,1744092632410,-500.0,0.00019779,2]
[357501422,1744092632420,-500.0,0.00019779,2]
[357501424,1744092632432,-300.0,0.00019779,2]
[357501425,1744092632441,-533.63518212,0.00019779,2]
[357501427,1744092632451,-500.0,0.00019779,2]
[357501429,1744092632461,-500.0,0.00019779,2]
[357501431,1744092632471,-500.0,0.00019779,2]
[357501432,1744092632483,-500.0,0.0001978,2]
[357501434,1744092632498,-500.0,0.0001978,2]
[357501436,1744092632508,-500.0,0.0001978,2]
[357501437,1744092632518,-500.0,0.0001978,2]
[357501439,1744092632528,-500.0,0.0001978,2]
[357501441,1744092632539,-500.0,0.0001978,2]
[357501442,1744092632549,-500.0,0.0001978,2]
[357501443,1744092632560,-500.0,0.0001978,2]
[357501444,1744092632570,-500.0,0.0001978,2]
[357501445,1744092632580,-601.8070285,0.0001978,2]
[357501446,1744092632590,-500.0,0.0001978,2]
[357501447,1744092632600,-500.0,0.0001978,2]
[357501448,1744092632610,-500.0,0.0001978,2]
[357501449,1744092632619,-500.0,0.0001978,2]
[357501450,1744092632629,-500.0,0.0001978,2]
[357501452,1744092632639,-500.0,0.0001978,2]
[357501454,1744092632650,-500.0,0.0001978,2]
[357501456,1744092632660,-500.0,0.0001978,2]
[357501458,1744092632670,-500.0,0.0001978,2]
[357501459,1744092632680,-500.0,0.0001978,2]
[357501461,1744092632690,-164.12465667,0.0001978,2]
[357501463,1744092632700,-1105.7924777,0.0001978,2]
[357501464,1744092632710,-500.0,0.0001978,2]
[357501466,1744092632720,-500.0,0.0001978,2]
[357501468,1744092632730,-500.0,0.0001978,2]
[357501469,1744092632739,-1113.32,0.0001978,2]
[357501471,1744092632749,-500.0,0.0001978,2]
[357501473,1744092632758,-500.0,0.0001978,2]
[357501475,1744092632768,-500.0,0.0001978,2]
[357501476,1744092632778,-500.0,0.0001978,2]
[357501477,1744092632787,-500.0,0.0001978,2]
[357501478,1744092632797,-500.0,0.0001978,2]
[357501479,1744092632806,-530.02,0.0001978,2]
[357501480,1744092632816,-500.0,0.0001978,2]
[357501481,1744092632826,-500.0,0.0001978,2]
[357501482,1744092632836,-500.0,0.0001978,2]
[357501483,1744092632846,-500.0,0.0001978,2]
[357501484,1744092632856,-500.0,0.0001978,2]
[357501485,1744092632866,-500.0,0.0001978,2]
[357501486,1744092632875,-500.0,0.0001978,2]
[357501487,1744092632884,-500.0,0.0001978,2]
[357501488,1744092632894,-500.0,0.0001978,2]
[357501489,1744092632903,-500.0,0.0001978,2]
[357501490,1744092632913,-500.0,0.0001978,2]
[357501491,1744092632922,-420.6149351,0.0001978,2]
[357501492,1744092632936,-79.3850649,0.0001978,2]
[357501493,1744092632946,-500.0,0.0001978,2]
[357501494,1744092632956,-403.61800063,0.0001978,2]
[357501495,1744092632966,-500.0,0.00019781,2]
[357501496,1744092632975,-500.0,0.00019781,2]
[357501497,1744092632985,-500.0,0.00019781,2]
[357501498,1744092632994,-500.0,0.00019781,2]
[357501499,1744092633003,-500.0,0.00019781,2]
[357501500,1744092633014,-225.37271749,0.00019781,2]
[357501501,1744092633024,-577.81678415,0.00019781,2]
[357501502,1744092633034,-500.0,0.00019781,2]
[357501503,1744092633045,-501.78984417,0.00019781,2]
[357501504,1744092633055,-1000.0,0.00019781,2]
[357501505,1744092633065,-500.0,0.00019781,2]
[357501506,1744092633075,-500.0,0.00019781,2]
[357501507,1744092633085,-500.0,0.00019781,2]
[357501508,1744092633096,-500.0,0.00019781,2]
[357501509,1744092633107,-500.0,0.00019781,2]
[357501510,1744092633117,-500.0,0.00019781,2]
[357501511,1744092633127,-500.0,0.00019781,2]
[357501512,1744092633138,-503.28601303,0.00019781,2]
[357501513,1744092633148,-627.14761434,0.00019781,2]
[357501514,1744092633157,-500.0,0.00019781,2]
[357501515,1744092633167,-500.0,0.00019781,2]
[357501516,1744092633178,-500.0,0.00019781,2]
[357501517,1744092633188,-500.0,0.00019781,2]
[357501518,1744092633198,-500.0,0.00019781,2]
[357501519,1744092633208,-539.73865458,0.00019781,2]
[357501520,1744092633218,-577.32251938,0.00019781,2]
[357501521,1744092633228,-500.0,0.00019781,2]
[357501522,1744092633238,-477.40102019,0.00019781,2]
[357501523,1744092633248,-500.0,0.00019781,2]
[357501524,1744092633259,-500.0,0.00019781,2]
[357501525,1744092633268,-500.0,0.00019781,2]
[357501526,1744092633278,-503.00155687,0.00019781,2]
[357501527,1744092633288,-500.0,0.00019781,2]
[357501528,1744092633298,-500.0,0.00019781,2]
[357501529,1744092633308,-500.0,0.00019781,2]
[357501530,1744092633318,-599.52510611,0.00019781,2]
[357501531,1744092633327,-542.0799811,0.00019781,2]
[357501532,1744092633337,-500.0,0.00019781,2]
[357501533,1744092633347,-501.17254304,0.00019781,2]
[357501534,1744092633357,-500.0,0.00019781,2]
[357501535,1744092633367,-556.23,0.00019781,2]
[357501536,1744092633377,-500.0,0.00019781,2]
[357501537,1744092633387,-500.0,0.00019781,2]
[357501538,1744092633397,-500.0,0.00019781,2]
[357501539,1744092633407,-500.0,0.00019781,2]
[357501540,1744092633418,-500.0,0.00019781,2]
[357501541,1744092633587,-463.28300745,0.00019781,2]
[357501542,1744092633597,-500.0,0.00019781,2]
[357501543,1744092633607,-500.0,0.00019781,2]
[357501544,1744092633617,-500.0,0.00019781,2]
[357501545,1744092633626,-500.0,0.00019781,2]
[357501546,1744092633636,-500.0,0.00019781,2]
[357501547,1744092633646,-500.0,0.00019781,2]
[357501548,1744092633655,-500.0,0.00019781,2]
[357501549,1744092633665,-500.0,0.00019781,2]
[357501550,1744092633675,-500.0,0.00019781,2]
[357501551,1744092633685,-500.0,0.00019781,2]
[357501552,1744092633695,-500.0,0.00019781,2]
[357501553,1744092633705,-500.0,0.00019781,2]
[357501554,1744092633714,-500.0,0.00019781,2]
[357501555,1744092633724,-500.0,0.00019781,2]
[357501556,1744092633734,-625.60839899,0.00019781,2]
[357501557,1744092633743,-500.0,0.00019781,2]
[357501558,1744092633753,-500.0,0.00019781,2]
[357501559,1744092633762,-500.0,0.00019781,2]
[357501560,1744092633772,-500.0,0.00019781,2]
[357501561,1744092633782,-500.0,0.00019781,2]
[357501562,1744092633791,-500.0,0.00019781,2]
[357501563,1744092633801,-500.0,0.00019781,2]
[357501564,1744092633811,-500.0,0.00019781,2]
[357501565,1744092633820,-500.0,0.00019781,2]
[357501566,1744092633830,-500.0,0.00019781,2]
[357501567,1744092633841,-500.0,0.00019781,2]
[357501568,1744092633850,-500.0,0.00019781,2]
[357501569,1744092633861,-500.0,0.00019781,2]
[357501570,1744092633871,-538.10244942,0.00019781,2]
[357501571,1744092633881,-500.0,0.00019781,2]
[357501572,1744092633891,-248.37417256,0.00019781,2]
[357501573,1744092633901,-500.0,0.00019781,2]
[357501574,1744092633912,-500.0,0.00019781,2]
[357501575,1744092633922,-500.0,0.00019781,2]
[357501576,1744092633932,-500.0,0.00019781,2]
[357501577,1744092633942,-500.0,0.00019781,2]
[357501578,1744092633952,-500.0,0.00019781,2]
[357501579,1744092633962,-500.0,0.00019781,2]
[357501580,1744092633971,-500.0,0.00019781,2]
[357501581,1744092633981,-500.0,0.00019781,2]
[357501582,1744092633990,-500.0,0.00019781,2]
[357501583,1744092634000,-500.0,0.00019781,2]
[357501584,1744092634009,-502.08197635,0.00019781,2]
[357501585,1744092634019,-500.0,0.00019781,2]
[357501586,1744092634029,-500.0,0.00019781,2]
[357501587,1744092634038,-500.0,0.00019781,2]
[357501588,1744092634048,-500.0,0.00019781,2]
[357501589,1744092634057,-500.0,0.00019781,2]
[357501590,1744092634067,-500.0,0.00019781,2]
[357501591,1744092634076,-500.0,0.00019781,2]
[357501592,1744092634087,-500.0,0.00019781,2]
[357501593,1744092634097,-500.0,0.00019781,2]
[357501594,1744092634107,-500.0,0.00019781,2]
[357501595,1744092634117,-500.0,0.00019781,2]
[357501596,1744092634127,-500.0,0.00019781,2]
[357501597,1744092634137,-500.0,0.00019781,2]
[357501598,1744092634147,-501.93312062,0.00019781,2]
[357501599,1744092634157,-500.0,0.00019781,2]
[357501600,1744092634167,-500.0,0.00019781,2]
[357501601,1744092634177,-500.0,0.00019781,2]
[357501602,1744092634187,-500.0,0.00019781,2]
[357501603,1744092634197,-500.0,0.00019781,2]
[357501604,1744092634208,-500.0,0.00019781,2]
[357501605,1744092634218,-500.0,0.00019781,2]
[357501606,1744092634228,-500.0,0.00019781,2]
[357501607,1744092634239,-500.0,0.00019781,2]
[357501608,1744092634250,-500.0,0.00019781,2]
[357501609,1744092634260,-509.96171456,0.00019781,2]
[357501610,1744092634270,-500.0,0.00019781,2]
[357501611,1744092634279,-500.0,0.00019781,2]
[357501612,1744092634290,-500.0,0.00019781,2]
[357501613,1744092634300,-500.0,0.00019781,2]
[357501614,1744092634310,-500.0,0.00019781,2]
[357501615,1744092634320,-500.0,0.00019781,2]
[357501616,1744092634330,-509.97066159,0.00019781,2]
[357501617,1744092634340,-500.0,0.00019781,2]
[357501618,1744092634350,-500.0,0.00019781,2]
[357501619,1744092634360,-500.0,0.00019781,2]
[357501620,1744092634370,-500.0,0.00019781,2]
[357501621,1744092634380,-500.0,0.00019781,2]
[357501622,1744092634389,-500.0,0.00019781,2]
[357501623,1744092634399,-500.0,0.00019781,2]
[357501624,1744092634409,-538.19314443,0.00019781,2]
[357501625,1744092634419,-500.0,0.00019781,2]
[357501626,1744092634429,-500.0,0.00019781,2]
[357501627,1744092634439,-516.39451583,0.00019781,2]
[357501628,1744092634449,-503.43202429,0.00019781,2]
[357501629,1744092634459,-500.0,0.00019781,2]
[357501630,1744092634469,-500.0,0.00019781,2]
[357501631,1744092634479,-500.0,0.00019781,2]
[357501632,1744092634490,-500.0,0.00019781,2]
[357501633,1744092634502,-500.0,0.00019781,2]
[357501634,1744092634512,-500.0,0.00019781,2]
[357501635,1744092634521,-500.0,0.00019781,2]
[357501636,1744092634531,-502.94322603,0.00019781,2]
[357501637,1744092634541,-500.0,0.00019781,2]
[357501638,1744092634551,-500.0,0.00019781,2]
[357501639,1744092634561,-635.17,0.00019781,2]
[357501640,1744092634572,-175.26288052,0.00019781,2]
[357501641,1744092634583,-500.0,0.00019781,2]
[357501642,1744092634592,-500.0,0.00019781,2]
[357501643,1744092634602,-500.0,0.00019781,2]
[357501644,1744092634612,-500.0,0.00019781,2]
[357501645,1744092634622,-500.0,0.00019781,2]
[357501646,1744092634633,-631.67673595,0.00019781,2]
[357501647,1744092634642,-500.0,0.00019781,2]
[357501648,1744092634652,-592.60718441,0.00019781,2]
[357501649,1744092634662,-500.0,0.00019781,2]
[357501650,1744092634672,-502.97858351,0.00019781,2]
[357501651,1744092634681,-500.0,0.00019781,2]
[357501652,1744092634692,-500.0,0.00019781,2]
[357501653,1744092634701,-500.0,0.00019781,2]
[357501654,1744092634711,-507.31175644,0.00019781,2]
[357501655,1744092634721,-503.27697886,0.00019781,2]
[357501656,1744092634731,-500.0,0.00019781,2]
[357501657,1744092634740,-500.0,0.00019781,2]
[357501658,1744092634750,-500.0,0.00019781,2]
[357501659,1744092634759,-500.0,0.00019781,2]
[357501660,1744092634769,-500.0,0.00019781,2]
[357501661,1744092634779,-500.0,0.00019781,2]
[357501662,1744092634789,-534.04690118,0.00019781,2]
[357501663,1744092634799,-500.0,0.00019781,2]
[357501664,1744092634808,-500.0,0.00019781,2]
[357501665,1744092634818,-500.0,0.00019781,2]
[357501666,1744092634828,-500.0,0.00019781,2]
[357501667,1744092634837,-500.0,0.00019781,2]
[357501668,1744092634847,-500.0,0.00019781,2]
[357501669,1744092634856,-500.0,0.00019781,2]
[357501670,1744092634865,-500.0,0.00019781,2]
[357501671,1744092634874,-500.0,0.00019781,2]
[357501672,1744092634884,-500.0,0.00019781,2]
[357501673,1744092634894,-500.0,0.00019781,2]
[357501674,1744092634903,-500.0,0.00019781,2]
[357501675,1744092634913,-500.0,0.00019781,2]
[357501676,1744092634923,-1511.11,0.00019781,2]
[357501677,1744092634933,-500.0,0.00019781,2]
[357501678,1744092634942,-500.0,0.00019781,2]
[357501679,1744092634952,-500.0,0.00019781,2]
[357501680,1744092634962,-500.0,0.00019781,2]
[357501681,1744092634972,-500.0,0.00019781,2]
[357501682,1744092634981,-500.0,0.00019781,2]
[357501683,1744092634991,-500.0,0.00019781,2]
[357501684,1744092635001,-500.0,0.00019781,2]
[357501685,1744092635011,-500.0,0.00019781,2]
[357501686,1744092635021,-500.0,0.00019781,2]
[357501687,1744092635031,-500.0,0.00019781,2]
[357501688,1744092635041,-416.0212598,0.00019781,2]
[357501718,1744092638534,-83.9787402,0.00019781,2]
[357501719,1744092638549,-500.0,0.00019781,2]
[357501720,1744092638563,-500.0,0.00019781,2]
[357501721,1744092638577,-503.96256654,0.00019781,2]
[357501722,1744092638593,-264.08742079,0.00019781,2]
[357501723,1744092638607,-500.0,0.00019781,2]
[357501724,1744092638621,-500.0,0.00019781,2]
[357501725,1744092638635,-500.0,0.00019781,2]
[357501726,1744092638648,-185.76842905,0.00019781,2]
[357501727,1744092638663,-529.09,0.00019781,2]
[357501728,1744092638679,-32.41866429,0.00019781,2]
[357501729,1744092638697,-469.47204146,0.00019781,2]
[357501730,1744092638711,-500.0,0.00019781,2]
[357501731,1744092638725,-500.0,0.00019781,2]
[357501732,1744092638738,-500.0,0.00019781,2]
[357501733,1744092638750,-500.0,0.00019781,2]
[357501734,1744092638764,-500.0,0.00019781,2]
[357501736,1744092638775,-500.0,0.00019781,2]
[357501738,1744092638786,-500.0,0.00019781,2]
[357501739,1744092638798,-500.0,0.00019781,2]
[357501741,1744092638810,-510.26437902,0.00019781,2]
[357501743,1744092638821,-500.0,0.00019781,2]
[357501744,1744092638833,-500.0,0.00019781,2]
[357501745,1744092638845,-500.0,0.00019781,2]
[357501746,1744092638857,-540.11623778,0.00019781,2]
[357501747,1744092638869,-500.0,0.00019781,2]
[357501748,1744092638881,-247.17764994,0.00019781,2]
[357501749,1744092638893,-500.0,0.00019781,2]
[357501750,1744092638904,-500.0,0.00019781,2]
[357501751,1744092638916,-505.67084821,0.00019781,2]
[357501752,1744092638928,-500.0,0.00019781,2]
[357501753,1744092638941,-500.0,0.00019781,2]
[357501754,1744092638953,-500.0,0.00019781,2]
[357501755,1744092638966,-500.0,0.00019781,2]
[357501756,1744092638978,-500.0,0.00019781,2]
[357501757,1744092638992,-502.01708385,0.00019781,2]
[357501758,1744092639006,-631.11370864,0.00019781,2]
[357501759,1744092639016,-500.0,0.00019781,2]
[357501760,1744092639027,-500.0,0.00019781,2]
[357501761,1744092639038,-500.0,0.00019781,2]
[357501762,1744092639048,-500.0,0.00019781,2]
[357501763,1744092639059,-500.0,0.00019781,2]
[357501764,1744092639071,-500.0,0.00019781,2]
[357501765,1744092639082,-500.0,0.00019781,2]
[357501766,1744092639094,-500.0,0.00019781,2]
[357501767,1744092639107,-509.74167274,0.00019781,2]
[357501768,1744092639120,-102929.50895,0.00019782,2]
[357501769,1744092639135,-4462.90689574,0.00019782,2]
[357501770,1744092639150,-262404.67900322,0.00019782,2]
[357501771,1744092639161,-500.0,0.00019873,2]
[357501772,1744092639172,-500.0,0.00019873,2]
[357501773,1744092639182,-500.0,0.00019873,2]
[357501774,1744092639194,-500.0,0.00019873,2]
[357501775,1744092639205,-500.0,0.00019873,2]
[357501776,1744092639217,-500.0,0.00019873,2]
[357501777,1744092639228,-500.0,0.00019873,2]
[357501778,1744092639241,-500.0,0.00019873,2]
[357501779,1744092639254,-500.0,0.00019873,2]
[357501780,1744092639266,-500.0,0.00019873,2]
[357501781,1744092639277,-500.0,0.00019873,2]
[357501782,1744092639288,-500.0,0.00019879,2]
[357501783,1744092639300,-500.0,0.00019879,2]
[357501784,1744092639311,-500.0,0.00019879,2]
[357501785,1744092639323,-500.0,0.00019879,2]
[357501786,1744092639334,-500.0,0.00019879,2]
[357501787,1744092639346,-500.0,0.00019879,2]
[357501788,1744092639358,-500.0,0.00019879,2]
[357501789,1744092639369,-500.0,0.00019879,2]
[357501790,1744092639380,-500.0,0.00019879,2]
[357501791,1744092639392,-500.0,0.00019879,2]
[357501792,1744092639402,-500.0,0.00019879,2]
[357501793,1744092639413,-500.0,0.00019879,2]
[357501794,1744092639425,-500.0,0.00019879,2]
[357501795,1744092639436,-500.0,0.00019879,2]
[357501796,1744092639447,-500.0,0.00019879,2]
[357501797,1744092639458,-500.0,0.00019879,2]
[357501798,1744092639468,-500.0,0.00019879,2]
[357501799,1744092639479,-500.0,0.00019879,2]
[357501800,1744092639491,-500.0,0.00019879,2]
[357501801,1744092639505,-500.0,0.0001988,2]
[357501802,1744092639516,-538.70553909,0.0001988,2]
[357501803,1744092639528,-500.0,0.0001988,2]
[357501804,1744092639539,-522.83905565,0.0001988,2]
[357501805,1744092639550,-500.0,0.0001988,2]
[357501806,1744092639561,-500.0,0.0001988,2]
[357501807,1744092639572,-500.0,0.0001988,2]
[357501808,1744092639583,-500.0,0.0001988,2]
[357501809,1744092639594,-500.0,0.0001988,2]
[357501810,1744092639605,-500.0,0.0001988,2]
[357501811,1744092639616,-505.18861749,0.0001988,2]
[357501812,1744092639627,-500.0,0.0001988,2]
[357501813,1744092639638,-500.0,0.0001988,2]
[357501814,1744092639649,-609.69227135,0.0001988,2]
[357501815,1744092639660,-231.6420877,0.0001988,2]
[357501816,1744092639671,-500.74895957,0.0001988,2]
[357501817,1744092639682,-500.0,0.0001988,2]
[357501818,1744092639693,-511.98337861,0.0001988,2]
[357501819,1744092639705,-514.78472959,0.0001988,2]
[357501820,1744092639717,-500.0,0.0001988,2]
[357501821,1744092639728,-500.0,0.0001988,2]
[357501822,1744092639739,-523.91884761,0.0001988,2]
[357501823,1744092639750,-1000.0,0.0001988,2]
[357501824,1744092639763,-532.28675055,0.0001988,2]
[357501825,1744092639774,-500.0,0.0001988,2]
[357501826,1744092639786,-500.0,0.0001988,2]
[357501827,1744092639797,-500.0,0.0001988,2]
[357501828,1744092639809,-565.7857778,0.0001988,2]
[357501829,1744092639820,-502.96984523,0.0001988,2]
[357501830,1744092639831,-520.14337354,0.0001988,2]
[357501831,1744092639843,-528.99837628,0.0001988,2]
[357501832,1744092639854,-260.26426677,0.0001988,2]
[357501833,1744092639865,-740.4,0.0001988,2]
[357501834,1744092639878,-506.68479477,0.0001988,2]
[357501835,1744092639889,-521.20625746,0.0001988,2]
[357501836,1744092639900,-500.0,0.0001988,2]
[357501837,1744092639912,-500.0,0.0001988,2]
[357501838,1744092639923,-540.50894998,0.0001988,2]
[357501840,1744092639935,-508.57036811,0.0001988,2]
[357501842,1744092639946,-500.0,0.0001988,2]
[357501844,1744092639958,-510.33976442,0.0001988,2]
[357501846,1744092639970,-524.21531306,0.0001988,2]
[357501847,1744092639980,-500.0,0.0001988,2]
[357501848,1744092639992,-188.70133281,0.0001988,2]
[357501849,1744092640004,-500.0,0.0001988,2]
[357501850,1744092640016,-500.0,0.0001988,2]
[357501851,1744092640027,-500.0,0.0001988,2]
[357501852,1744092640038,-500.0,0.0001988,2]
[357501853,1744092640049,-500.0,0.0001988,2]
[357501854,1744092640060,-500.0,0.0001988,2]
[357501855,1744092640072,-506.62329598,0.0001988,2]
[357501856,1744092640082,-500.0,0.0001988,2]
[357501857,1744092640092,-500.0,0.0001988,2]
[357501858,1744092640102,-500.0,0.0001988,2]
[357501859,1744092640112,-505.61642976,0.0001988,2]
[357501860,1744092640122,-500.0,0.0001988,2]
[357501861,1744092640132,-500.0,0.0001988,2]
[357501862,1744092640142,-500.0,0.0001988,2]
[357501863,1744092640151,-500.0,0.0001988,2]
[357501864,1744092640161,-500.0,0.0001988,2]
[357501865,1744092640170,-500.0,0.0001988,2]
[357501866,1744092640180,-500.0,0.0001988,2]
[357501867,1744092640190,-500.0,0.0001988,2]
[357501868,1744092640199,-500.0,0.0001988,2]
[357501869,1744092640210,-469.61929081,0.0001988,2]
[357501870,1744092640221,-500.0,0.0001988,2]
[357501873,1744092640428,-500.0,0.0001988,2]
[357501874,1744092640443,-500.0,0.0001988,2]
[357501875,1744092640453,-500.0,0.0001988,2]
[357501877,1744092640463,-500.0,0.0001988,2]
[357501878,1744092640473,-517.03297419,0.0001988,2]
[357501879,1744092640483,-557.99647444,0.0001988,2]
[357501880,1744092640492,-500.0,0.0001988,2]
[357501881,1744092640505,-502.6776057,0.0001988,2]
[357501882,1744092640515,-523.96421349,0.0001988,2]
[357501883,1744092640524,-514.77968771,0.0001988,2]